[Event "Titled Tuesday Blitz June 8 2021"]
[White "Stark, Lars"]
[Black "Sokolin, Leonid"]
[WhiteFideId "4676386"]
[BlackFideId "2009161"]
[WhiteElo "2474"]
[BlackElo "2394"]
[Result "0-1"]
[Round "08"]
[TimeControl "180+1"]
[Date "2021.06.08"]
[WhiteClock "0:00:56"]
[BlackClock "0:00:49"]

1. c4 {[%clk 0:03:00]}  e5 {[%clk 0:02:56]} 2. g3 {[%clk 0:03:00]}  c6 {[%clk 0:02:56]} 3. Nf3 {[%clk 0:02:59]}  e4 {[%clk 0:02:55]} 4. Nd4 {[%clk 0:03:00]}  d5 {[%clk 0:02:55]} 5. cxd5 {[%clk 0:03:01]}  Qxd5 {[%clk 0:02:54]} 6. Nc2 {[%clk 0:03:01]}  Nf6 {[%clk 0:02:53]} 7. Nc3 {[%clk 0:03:00]}  Qh5 {[%clk 0:02:52]} 8. Ne3 {[%clk 0:03:00]}  Bc5 {[%clk 0:02:50]} 9. Qc2 {[%clk 0:03:00]}  Bxe3 {[%clk 0:02:38]} 10. fxe3 {[%clk 0:03:01]}  Qg6 {[%clk 0:02:36]} 11. Bg2 {[%clk 0:03:00]}  Bf5 {[%clk 0:02:35]} 12. O-O {[%clk 0:03:00]}  O-O {[%clk 0:02:33]} 13. Rxf5 {[%clk 0:02:58]}  Qxf5 {[%clk 0:02:33]} 14. Nxe4 {[%clk 0:02:59]}  Kh8 {[%clk 0:02:19]} 15. d3 {[%clk 0:02:48]}  Nxe4 {[%clk 0:02:16]} 16. Bxe4 {[%clk 0:02:49]}  Qe6 {[%clk 0:02:14]} 17. Bd2 {[%clk 0:02:48]}  Nd7 {[%clk 0:02:14]} 18. Rf1 {[%clk 0:02:47]}  f5 {[%clk 0:02:12]} 19. Bg2 {[%clk 0:02:47]}  Qxa2 {[%clk 0:02:07]} 20. Bb4 {[%clk 0:02:40]}  Rf7 {[%clk 0:02:03]} 21. Bc3 {[%clk 0:02:33]}  Qe6 {[%clk 0:02:02]} 22. Qd2 {[%clk 0:02:27]}  Re8 {[%clk 0:02:00]} 23. e4 {[%clk 0:02:18]}  fxe4 {[%clk 0:01:58]} 24. Bxe4 {[%clk 0:02:19]}  Rxf1+ {[%clk 0:01:56]} 25. Kxf1 {[%clk 0:02:19]}  Nf6 {[%clk 0:01:55]} 26. Bf3 {[%clk 0:02:17]}  Qf5 {[%clk 0:01:48]} 27. Kg2 {[%clk 0:02:14]}  h6 {[%clk 0:01:45]} 28. h3 {[%clk 0:02:07]}  Qg5 {[%clk 0:01:27]} 29. Qxg5 {[%clk 0:02:01]}  hxg5 {[%clk 0:01:26]} 30. g4 {[%clk 0:01:57]}  Kg8 {[%clk 0:01:25]} 31. Kg3 {[%clk 0:01:57]}  Kf7 {[%clk 0:01:24]} 32. h4 {[%clk 0:01:56]}  gxh4+ {[%clk 0:01:23]} 33. Kxh4 {[%clk 0:01:57]}  Nd5 {[%clk 0:01:23]} 34. Bd2 {[%clk 0:01:56]}  b6 {[%clk 0:01:18]} 35. g5 {[%clk 0:01:54]}  g6 {[%clk 0:01:16]} 36. Kg3 {[%clk 0:01:46]}  a5 {[%clk 0:01:15]} 37. e4 {[%clk 0:01:42]}  Nb4 {[%clk 0:01:15]} 38. d4 {[%clk 0:01:41]}  Rd8 {[%clk 0:01:11]} 39. Bc3 {[%clk 0:01:38]}  Na2 {[%clk 0:01:08]} 40. e5 {[%clk 0:01:28]}  Nxc3 {[%clk 0:01:08]} 41. bxc3 {[%clk 0:01:29]}  Rc8 {[%clk 0:01:07]} 42. Kf4 {[%clk 0:01:25]}  a4 {[%clk 0:01:06]} 43. c4 {[%clk 0:01:17]}  a3 {[%clk 0:01:06]} 44. d5 {[%clk 0:01:10]}  a2 {[%clk 0:01:06]} 45. Bg4 {[%clk 0:01:08]}  Rf8 {[%clk 0:00:54]} 46. d6 {[%clk 0:01:02]}  a1=Q {[%clk 0:00:52]} 47. e6+ {[%clk 0:01:02]}  Kg7+ {[%clk 0:00:52]} 48. Ke4 {[%clk 0:00:59]}  Qe1+ {[%clk 0:00:49]} 49. Kd3 {[%clk 0:00:56]} 0-1


[Site "https://www.chess.com"]

[Event "Titled Tuesday Blitz June 8 2021"]
[White "Starozhilov, Leonid"]
[Black "Nesterov, Arseniy"]
[WhiteFideId "14106752"]
[BlackFideId "24198455"]
[WhiteElo "2414"]
[BlackElo "2441"]
[Result "0-1"]
[Round "08"]
[TimeControl "180+1"]
[Date "2021.06.08"]
[WhiteClock "0:00:06"]
[BlackClock "0:00:43"]

1. e4 {[%clk 0:03:00]}  e5 {[%clk 0:02:59]} 2. Nf3 {[%clk 0:03:01]}  Nc6 {[%clk 0:02:59]} 3. Bb5 {[%clk 0:03:01]}  a6 {[%clk 0:02:59]} 4. Bxc6 {[%clk 0:02:58]}  dxc6 {[%clk 0:03:00]} 5. h3 {[%clk 0:02:58]}  Ne7 {[%clk 0:02:38]} 6. d3 {[%clk 0:02:39]}  Ng6 {[%clk 0:02:38]} 7. Be3 {[%clk 0:02:38]}  Bd6 {[%clk 0:02:37]} 8. Nbd2 {[%clk 0:02:38]}  O-O {[%clk 0:02:37]} 9. O-O {[%clk 0:02:36]}  c5 {[%clk 0:02:37]} 10. Re1 {[%clk 0:02:27]}  b6 {[%clk 0:02:35]} 11. Nf1 {[%clk 0:02:27]}  f6 {[%clk 0:02:34]} 12. Ng3 {[%clk 0:02:27]}  Re8 {[%clk 0:02:34]} 13. a4 {[%clk 0:02:26]}  a5 {[%clk 0:02:34]} 14. b3 {[%clk 0:02:26]}  Nf8 {[%clk 0:02:33]} 15. Nd2 {[%clk 0:02:21]}  Ne6 {[%clk 0:02:26]} 16. Nc4 {[%clk 0:02:16]}  Bf8 {[%clk 0:02:25]} 17. Rf1 {[%clk 0:02:14]}  Bd7 {[%clk 0:02:09]} 18. Ne2 {[%clk 0:02:09]}  Bc6 {[%clk 0:01:59]} 19. Qd2 {[%clk 0:02:06]}  Nd4 {[%clk 0:01:56]} 20. Rae1 {[%clk 0:01:49]}  Qd7 {[%clk 0:01:53]} 21. f3 {[%clk 0:01:41]}  Rad8 {[%clk 0:01:51]} 22. Kh1 {[%clk 0:01:36]}  Bb7 {[%clk 0:01:51]} 23. Nxd4 {[%clk 0:01:34]}  cxd4 {[%clk 0:01:49]} 24. Bg1 {[%clk 0:01:35]}  Bb4 {[%clk 0:01:49]} 25. Qd1 {[%clk 0:01:32]}  Bxe1 {[%clk 0:01:49]} 26. Qxe1 {[%clk 0:01:32]}  Ba6 {[%clk 0:01:49]} 27. Nd2 {[%clk 0:01:32]}  Qc6 {[%clk 0:01:46]} 28. Qd1 {[%clk 0:01:29]}  b5 {[%clk 0:01:46]} 29. axb5 {[%clk 0:01:28]}  Bxb5 {[%clk 0:01:47]} 30. f4 {[%clk 0:01:27]}  exf4 {[%clk 0:01:35]} 31. Rxf4 {[%clk 0:01:28]}  a4 {[%clk 0:01:33]} 32. bxa4 {[%clk 0:01:28]}  Bxa4 {[%clk 0:01:33]} 33. Nc4 {[%clk 0:01:29]}  Bb5 {[%clk 0:01:33]} 34. Nd2 {[%clk 0:01:05]}  Qd6 {[%clk 0:01:19]} 35. Bh2 {[%clk 0:00:58]}  c5 {[%clk 0:01:12]} 36. Rf2 {[%clk 0:00:48]}  Qc6 {[%clk 0:01:10]} 37. Qg4 {[%clk 0:00:43]}  Qe6 {[%clk 0:01:03]} 38. Qxe6+ {[%clk 0:00:35]}  Rxe6 {[%clk 0:01:02]} 39. Rf5 {[%clk 0:00:36]}  Rc8 {[%clk 0:00:55]} 40. Nb3 {[%clk 0:00:26]}  Rec6 {[%clk 0:00:51]} 41. Bg3 {[%clk 0:00:23]}  Ba4 {[%clk 0:00:50]} 42. e5 {[%clk 0:00:18]}  Bxb3 {[%clk 0:00:48]} 43. cxb3 {[%clk 0:00:18]}  Kf7 {[%clk 0:00:47]} 44. exf6 {[%clk 0:00:17]}  Rxf6 {[%clk 0:00:47]} 45. Rd5 {[%clk 0:00:18]}  Rf1+ {[%clk 0:00:43]} 46. Kh2 {[%clk 0:00:18]}  Rd1 {[%clk 0:00:44]} 47. Rd7+ {[%clk 0:00:14]}  Kf6 {[%clk 0:00:44]} 48. Bh4+ {[%clk 0:00:09]}  g5 {[%clk 0:00:43]} 49. Bg3 {[%clk 0:00:06]}  Rxd3 {[%clk 0:00:43]} 0-1


[Site "https://www.chess.com"]

[Event "Titled Tuesday Blitz June 8 2021"]
[White "Stepanencu, Nicodim-Cosmin"]
[Black "Matinian, Nikita"]
[WhiteFideId "1256220"]
[BlackFideId "24129100"]
[WhiteElo "1704"]
[BlackElo "2410"]
[Result "1-0"]
[Round "08"]
[TimeControl "180+1"]
[Date "2021.06.08"]
[WhiteClock "0:01:29"]
[BlackClock "0:00:02"]

1. e4 {[%clk 0:03:00]}  e5 {[%clk 0:02:58]} 2. Nf3 {[%clk 0:03:00]}  Nc6 {[%clk 0:02:58]} 3. d4 {[%clk 0:03:00]}  exd4 {[%clk 0:02:58]} 4. Nxd4 {[%clk 0:03:01]}  Bc5 {[%clk 0:02:58]} 5. Nb3 {[%clk 0:03:01]}  Bb6 {[%clk 0:02:58]} 6. Nc3 {[%clk 0:03:02]}  Nge7 {[%clk 0:02:58]} 7. Qe2 {[%clk 0:03:02]}  O-O {[%clk 0:02:56]} 8. Be3 {[%clk 0:03:02]}  f5 {[%clk 0:02:56]} 9. f4 {[%clk 0:02:57]}  fxe4 {[%clk 0:02:55]} 10. O-O-O {[%clk 0:02:56]}  d5 {[%clk 0:02:53]} 11. Nxe4 {[%clk 0:02:48]}  Bg4 {[%clk 0:02:45]} 12. Qxg4 {[%clk 0:02:41]}  Bxe3+ {[%clk 0:02:45]} 13. Kb1 {[%clk 0:02:42]}  Qc8 {[%clk 0:02:30]} 14. Qxc8 {[%clk 0:02:34]}  Raxc8 {[%clk 0:02:31]} 15. Nec5 {[%clk 0:02:33]}  Rxf4 {[%clk 0:02:25]} 16. Nxb7 {[%clk 0:02:23]}  Ne5 {[%clk 0:02:15]} 17. Ba6 {[%clk 0:02:10]}  Rb8 {[%clk 0:02:09]} 18. Rhe1 {[%clk 0:02:05]}  d4 {[%clk 0:02:01]} 19. c3 {[%clk 0:01:56]}  Rf6 {[%clk 0:01:36]} 20. N7c5 {[%clk 0:01:37]}  Ng4 {[%clk 0:00:25]} 21. Bc4+ {[%clk 0:01:35]}  Kh8 {[%clk 0:00:23]} 22. Nd7 {[%clk 0:01:31]}  Rc8 {[%clk 0:00:02]} 23. Nxf6 {[%clk 0:01:29]}  gxf6 {[%clk 0:00:02]} 24. Be6 {[%clk 0:01:29]} 1-0


[Site "https://www.chess.com"]

[Event "Titled Tuesday Blitz June 8 2021"]
[White "Trent, Lawrence"]
[Black "Shahade, Gregory"]
[WhiteFideId "408638"]
[BlackFideId "2009064"]
[WhiteElo "2474"]
[BlackElo "2707"]
[Result "1-0"]
[Round "08"]
[TimeControl "180+1"]
[Date "2021.06.08"]
[WhiteClock "0:00:05"]
[BlackClock "0:00:02"]

1. e4 {[%clk 0:02:58]}  e5 {[%clk 0:02:58]} 2. Nf3 {[%clk 0:02:54]}  Nc6 {[%clk 0:02:58]} 3. c3 {[%clk 0:02:39]}  d5 {[%clk 0:02:56]} 4. d3 {[%clk 0:02:19]}  Nf6 {[%clk 0:02:44]} 5. Nbd2 {[%clk 0:02:17]}  a5 {[%clk 0:02:43]} 6. a4 {[%clk 0:02:13]}  Be7 {[%clk 0:02:39]} 7. Be2 {[%clk 0:02:12]}  O-O {[%clk 0:02:39]} 8. O-O {[%clk 0:02:12]}  dxe4 {[%clk 0:02:34]} 9. dxe4 {[%clk 0:02:12]}  Nd7 {[%clk 0:02:30]} 10. Qc2 {[%clk 0:02:06]}  Nc5 {[%clk 0:02:28]} 11. Nc4 {[%clk 0:02:03]}  Be6 {[%clk 0:02:24]} 12. Be3 {[%clk 0:01:52]}  f6 {[%clk 0:02:17]} 13. Nh4 {[%clk 0:01:47]}  Qe8 {[%clk 0:02:14]} 14. Nf5 {[%clk 0:01:45]}  Qf7 {[%clk 0:02:06]} 15. b3 {[%clk 0:01:14]}  Rfd8 {[%clk 0:02:04]} 16. f4 {[%clk 0:01:12]}  exf4 {[%clk 0:02:01]} 17. Bxf4 {[%clk 0:01:12]}  Bf8 {[%clk 0:01:58]} 18. Bg3 {[%clk 0:00:56]}  Kh8 {[%clk 0:01:39]} 19. Rad1 {[%clk 0:00:51]}  Rxd1 {[%clk 0:01:34]} 20. Rxd1 {[%clk 0:00:51]}  Re8 {[%clk 0:01:35]} 21. Nd4 {[%clk 0:00:50]}  Bd7 {[%clk 0:01:05]} 22. Bf3 {[%clk 0:00:50]}  b6 {[%clk 0:00:46]} 23. Nb5 {[%clk 0:00:50]}  Ne6 {[%clk 0:00:25]} 24. Nxc7 {[%clk 0:00:46]}  Nxc7 {[%clk 0:00:25]} 25. Bxc7 {[%clk 0:00:46]}  Be6 {[%clk 0:00:25]} 26. Bxb6 {[%clk 0:00:44]}  Bxc4 {[%clk 0:00:25]} 27. bxc4 {[%clk 0:00:44]}  Qxc4 {[%clk 0:00:26]} 28. Qd3 {[%clk 0:00:28]}  Bc5+ {[%clk 0:00:25]} 29. Bxc5 {[%clk 0:00:28]}  Qxc5+ {[%clk 0:00:26]} 30. Kh1 {[%clk 0:00:28]}  Ne5 {[%clk 0:00:26]} 31. Qb5 {[%clk 0:00:27]}  Qc8 {[%clk 0:00:25]} 32. Rf1 {[%clk 0:00:13]}  Qd8 {[%clk 0:00:24]} 33. Be2 {[%clk 0:00:11]}  h6 {[%clk 0:00:23]} 34. c4 {[%clk 0:00:10]}  Re7 {[%clk 0:00:22]} 35. c5 {[%clk 0:00:10]}  Qc7 {[%clk 0:00:18]} 36. Qb6 {[%clk 0:00:10]}  Qc8 {[%clk 0:00:17]} 37. Qxa5 {[%clk 0:00:10]}  Rc7 {[%clk 0:00:17]} 38. Rc1 {[%clk 0:00:09]}  Rc6 {[%clk 0:00:15]} 39. Qb4 {[%clk 0:00:08]}  Rc7 {[%clk 0:00:12]} 40. h3 {[%clk 0:00:08]}  Ng6 {[%clk 0:00:12]} 41. Bg4 {[%clk 0:00:08]}  Qd8 {[%clk 0:00:11]} 42. c6 {[%clk 0:00:07]}  Ne5 {[%clk 0:00:10]} 43. Bf5 {[%clk 0:00:05]}  g6 {[%clk 0:00:05]} 44. Be6 {[%clk 0:00:05]}  Kg7 {[%clk 0:00:05]} 45. Bd5 {[%clk 0:00:05]}  h5 {[%clk 0:00:05]} 46. a5 {[%clk 0:00:05]}  Qa8 {[%clk 0:00:04]} 47. Qb6 {[%clk 0:00:05]}  Ra7 {[%clk 0:00:03]} 48. c7 {[%clk 0:00:05]}  Qc8 {[%clk 0:00:02]} 49. Qxa7 {[%clk 0:00:05]}  Nf3 {[%clk 0:00:03]} 50. Qb8 {[%clk 0:00:04]}  Qa6 {[%clk 0:00:02]} 51. c8=Q {[%clk 0:00:04]}  Qe2 {[%clk 0:00:02]} 52. Qf8+ {[%clk 0:00:04]}  Kh7 {[%clk 0:00:02]} 53. Qc7# {[%clk 0:00:05]} 1-0


[Site "https://www.chess.com"]

[Event "Titled Tuesday Blitz June 8 2021"]
[White "Tsyhanchuk_Stanislav"]
[Black "Nevednichy, Vladislav"]
[BlackFideId "1205730"]
[WhiteElo "2513"]
[BlackElo "2374"]
[Result "1/2-1/2"]
[Round "08"]
[TimeControl "180+1"]
[Date "2021.06.08"]
[WhiteClock "0:00:09"]
[BlackClock "0:00:29"]

1. e4 {[%clk 0:02:55]}  c5 {[%clk 0:02:58]} 2. Nf3 {[%clk 0:02:55]}  e6 {[%clk 0:02:57]} 3. d4 {[%clk 0:02:56]}  cxd4 {[%clk 0:02:58]} 4. Nxd4 {[%clk 0:02:56]}  a6 {[%clk 0:02:58]} 5. Bd3 {[%clk 0:02:56]}  Bc5 {[%clk 0:02:57]} 6. Be3 {[%clk 0:02:55]}  d6 {[%clk 0:02:51]} 7. O-O {[%clk 0:02:54]}  Ne7 {[%clk 0:02:49]} 8. c3 {[%clk 0:02:54]}  O-O {[%clk 0:02:44]} 9. Nd2 {[%clk 0:02:54]}  e5 {[%clk 0:02:38]} 10. Nc2 {[%clk 0:02:54]}  Nd7 {[%clk 0:02:37]} 11. a4 {[%clk 0:02:51]}  Ng6 {[%clk 0:02:31]} 12. g3 {[%clk 0:02:45]}  Nf6 {[%clk 0:02:15]} 13. Bxc5 {[%clk 0:02:41]}  dxc5 {[%clk 0:02:16]} 14. Nc4 {[%clk 0:02:42]}  Bg4 {[%clk 0:02:09]} 15. f3 {[%clk 0:02:41]}  Be6 {[%clk 0:02:08]} 16. N2e3 {[%clk 0:02:41]}  Qc7 {[%clk 0:02:04]} 17. a5 {[%clk 0:02:42]}  Rad8 {[%clk 0:02:03]} 18. Qe2 {[%clk 0:02:42]}  Rd7 {[%clk 0:01:56]} 19. Nb6 {[%clk 0:02:41]}  Rdd8 {[%clk 0:01:55]} 20. Nbc4 {[%clk 0:02:41]}  Ne7 {[%clk 0:01:53]} 21. Rfd1 {[%clk 0:02:34]}  Nc6 {[%clk 0:01:53]} 22. Kg2 {[%clk 0:01:55]}  g6 {[%clk 0:01:51]} 23. h4 {[%clk 0:01:54]}  Kg7 {[%clk 0:01:50]} 24. Qc2 {[%clk 0:01:37]}  Rd7 {[%clk 0:01:41]} 25. Nb6 {[%clk 0:01:36]}  Rdd8 {[%clk 0:01:41]} 26. Qa4 {[%clk 0:01:33]}  h6 {[%clk 0:01:30]} 27. Bc4 {[%clk 0:01:32]}  Bxc4 {[%clk 0:01:25]} 28. Nbxc4 {[%clk 0:01:33]}  Rxd1 {[%clk 0:01:21]} 29. Rxd1 {[%clk 0:01:34]}  Rd8 {[%clk 0:01:21]} 30. Rxd8 {[%clk 0:01:29]}  Qxd8 {[%clk 0:01:22]} 31. Qd1 {[%clk 0:01:29]}  Qxd1 {[%clk 0:01:19]} 32. Nxd1 {[%clk 0:01:30]}  h5 {[%clk 0:01:13]} 33. Nf2 {[%clk 0:01:28]}  Nd7 {[%clk 0:01:08]} 34. Nd3 {[%clk 0:01:29]}  Kf6 {[%clk 0:01:07]} 35. f4 {[%clk 0:01:29]}  exf4 {[%clk 0:01:05]} 36. gxf4 {[%clk 0:01:30]}  Ke6 {[%clk 0:01:05]} 37. Kf3 {[%clk 0:01:29]}  f5 {[%clk 0:01:01]} 38. exf5+ {[%clk 0:01:24]}  gxf5 {[%clk 0:00:59]} 39. Ke3 {[%clk 0:00:57]}  Kd5 {[%clk 0:00:59]} 40. b3 {[%clk 0:00:57]}  Ke6 {[%clk 0:00:58]} 41. b4 {[%clk 0:00:50]}  cxb4 {[%clk 0:00:57]} 42. cxb4 {[%clk 0:00:51]}  Ne7 {[%clk 0:00:53]} 43. Kd4 {[%clk 0:00:46]}  Ng6 {[%clk 0:00:52]} 44. Nce5 {[%clk 0:00:33]}  Nxh4 {[%clk 0:00:43]} 45. Nxd7 {[%clk 0:00:33]}  Kxd7 {[%clk 0:00:43]} 46. Nc5+ {[%clk 0:00:33]}  Kc6 {[%clk 0:00:43]} 47. Ke5 {[%clk 0:00:34]}  Kb5 {[%clk 0:00:40]} 48. Nxb7 {[%clk 0:00:32]}  Kxb4 {[%clk 0:00:41]} 49. Kf6 {[%clk 0:00:30]}  Ng2 {[%clk 0:00:39]} 50. Kxf5 {[%clk 0:00:30]}  h4 {[%clk 0:00:38]} 51. Kg4 {[%clk 0:00:29]}  h3 {[%clk 0:00:36]} 52. Kxh3 {[%clk 0:00:23]}  Nxf4+ {[%clk 0:00:36]} 53. Kg3 {[%clk 0:00:24]}  Ne6 {[%clk 0:00:34]} 54. Kf3 {[%clk 0:00:22]}  Kb5 {[%clk 0:00:32]} 55. Nd6+ {[%clk 0:00:16]}  Kxa5 {[%clk 0:00:32]} 56. Ke3 {[%clk 0:00:14]}  Kb4 {[%clk 0:00:32]} 57. Nb7 {[%clk 0:00:12]}  Kb5 {[%clk 0:00:31]} 58. Nd6+ {[%clk 0:00:11]}  Kc5 {[%clk 0:00:32]} 59. Nb7+ {[%clk 0:00:09]}  Kb6 {[%clk 0:00:32]} 60. Nd6 {[%clk 0:00:09]}  Kc6 {[%clk 0:00:32]} 61. Nc4 {[%clk 0:00:08]}  Nc5 {[%clk 0:00:30]} 62. Kd4 {[%clk 0:00:07]}  Nb7 {[%clk 0:00:30]} 63. Kc3 {[%clk 0:00:07]}  Kb5 {[%clk 0:00:30]} 64. Na3+ {[%clk 0:00:05]}  Ka4 {[%clk 0:00:30]} 65. Nc4 {[%clk 0:00:06]}  Nc5 {[%clk 0:00:30]} 66. Nd6 {[%clk 0:00:04]}  Ne6 {[%clk 0:00:27]} 67. Kb2 {[%clk 0:00:03]}  Kb4 {[%clk 0:00:27]} 68. Nf7 {[%clk 0:00:01]}  Nc5 {[%clk 0:00:26]} 69. Ne5 {[%clk 0:00:02]}  Na4+ {[%clk 0:00:24]} 70. Ka1 {[%clk 0:00:02]}  Kc5 {[%clk 0:00:24]} 71. Nd3+ {[%clk 0:00:02]}  Kc4 {[%clk 0:00:24]} 72. Nb2+ {[%clk 0:00:02]}  Nxb2 {[%clk 0:00:23]} 73. Kxb2 {[%clk 0:00:03]}  Kb4 {[%clk 0:00:24]} 74. Ka2 {[%clk 0:00:03]}  a5 {[%clk 0:00:25]} 75. Ka1 {[%clk 0:00:04]}  a4 {[%clk 0:00:26]} 76. Ka2 {[%clk 0:00:05]}  a3 {[%clk 0:00:27]} 77. Ka1 {[%clk 0:00:06]}  Ka4 {[%clk 0:00:27]} 78. Ka2 {[%clk 0:00:07]}  Kb4 {[%clk 0:00:28]} 79. Ka1 {[%clk 0:00:08]}  Kc3 {[%clk 0:00:28]} 80. Ka2 {[%clk 0:00:08]}  Kc2 {[%clk 0:00:29]} 81. Kxa3 {[%clk 0:00:09]} 1/2-1/2


[Site "https://www.chess.com"]

[Event "Titled Tuesday Blitz June 8 2021"]
[White "Vazquez, Facundo"]
[Black "Guliev, Logman"]
[WhiteFideId "3007669"]
[BlackFideId "13400061"]
[WhiteElo "1984"]
[BlackElo "2128"]
[Result "1-0"]
[Round "08"]
[TimeControl "180+1"]
[Date "2021.06.08"]
[WhiteClock "0:00:06"]
[BlackClock "0:00:02"]

1. d4 {[%clk 0:02:56]}  Nf6 {[%clk 0:02:58]} 2. c4 {[%clk 0:02:56]}  g6 {[%clk 0:02:57]} 3. Nc3 {[%clk 0:02:54]}  Bg7 {[%clk 0:02:57]} 4. g3 {[%clk 0:02:54]}  d6 {[%clk 0:02:58]} 5. Bg2 {[%clk 0:02:54]}  O-O {[%clk 0:02:58]} 6. Nf3 {[%clk 0:02:55]}  Nc6 {[%clk 0:02:58]} 7. O-O {[%clk 0:02:56]}  a6 {[%clk 0:02:58]} 8. h3 {[%clk 0:02:54]}  Bd7 {[%clk 0:02:54]} 9. e4 {[%clk 0:02:54]}  e5 {[%clk 0:02:54]} 10. d5 {[%clk 0:02:52]}  Ne7 {[%clk 0:02:54]} 11. Ne1 {[%clk 0:02:53]}  h6 {[%clk 0:02:49]} 12. Nd3 {[%clk 0:02:51]}  Nh7 {[%clk 0:02:33]} 13. c5 {[%clk 0:02:50]}  f5 {[%clk 0:02:31]} 14. Rb1 {[%clk 0:02:45]}  g5 {[%clk 0:02:21]} 15. exf5 {[%clk 0:02:41]}  Nxf5 {[%clk 0:02:21]} 16. b4 {[%clk 0:02:18]}  Nd4 {[%clk 0:02:20]} 17. Be3 {[%clk 0:02:12]}  Bf5 {[%clk 0:02:19]} 18. Ne4 {[%clk 0:02:07]}  Nf6 {[%clk 0:02:18]} 19. Bxd4 {[%clk 0:01:51]}  Bxe4 {[%clk 0:01:59]} 20. Bxe4 {[%clk 0:01:44]}  Nxe4 {[%clk 0:01:58]} 21. Be3 {[%clk 0:01:44]}  Nc3 {[%clk 0:01:57]} 22. Qg4 {[%clk 0:01:40]}  Nxb1 {[%clk 0:01:56]} 23. Rxb1 {[%clk 0:01:38]}  Qf6 {[%clk 0:01:56]} 24. Rc1 {[%clk 0:01:32]}  Qf5 {[%clk 0:01:55]} 25. Qxf5 {[%clk 0:01:27]}  Rxf5 {[%clk 0:01:55]} 26. Nb2 {[%clk 0:01:12]}  Bf8 {[%clk 0:01:38]} 27. Nc4 {[%clk 0:01:09]}  Rd8 {[%clk 0:01:16]} 28. g4 {[%clk 0:01:01]}  Rf7 {[%clk 0:01:15]} 29. Na5 {[%clk 0:00:58]}  Rb8 {[%clk 0:01:11]} 30. c6 {[%clk 0:00:54]}  bxc6 {[%clk 0:01:05]} 31. Nxc6 {[%clk 0:00:52]}  Ra8 {[%clk 0:01:01]} 32. Rc3 {[%clk 0:00:52]}  Bg7 {[%clk 0:01:00]} 33. Ra3 {[%clk 0:00:52]}  Rff8 {[%clk 0:00:59]} 34. Ra5 {[%clk 0:00:47]}  e4 {[%clk 0:00:58]} 35. Kg2 {[%clk 0:00:36]}  Rfe8 {[%clk 0:00:57]} 36. Ra3 {[%clk 0:00:33]}  Kf7 {[%clk 0:00:56]} 37. Ba7 {[%clk 0:00:31]}  Bf6 {[%clk 0:00:37]} 38. Ra5 {[%clk 0:00:20]}  Kg6 {[%clk 0:00:31]} 39. b5 {[%clk 0:00:19]}  axb5 {[%clk 0:00:30]} 40. Rxb5 {[%clk 0:00:20]}  Rf8 {[%clk 0:00:28]} 41. Rb7 {[%clk 0:00:18]}  Rf7 {[%clk 0:00:28]} 42. a4 {[%clk 0:00:16]}  h5 {[%clk 0:00:26]} 43. a5 {[%clk 0:00:16]}  hxg4 {[%clk 0:00:26]} 44. hxg4 {[%clk 0:00:16]}  Rh7 {[%clk 0:00:26]} 45. Rb8 {[%clk 0:00:14]}  Rh8 {[%clk 0:00:19]} 46. Rxa8 {[%clk 0:00:12]}  Rxa8 {[%clk 0:00:19]} 47. Bb8 {[%clk 0:00:10]}  Be5 {[%clk 0:00:13]} 48. Bxc7 {[%clk 0:00:08]}  Kf6 {[%clk 0:00:13]} 49. Bb6 {[%clk 0:00:05]}  Bf4 {[%clk 0:00:12]} 50. Kf1 {[%clk 0:00:04]}  Kf7 {[%clk 0:00:12]} 51. Ke2 {[%clk 0:00:04]}  Ke8 {[%clk 0:00:12]} 52. Nd4 {[%clk 0:00:04]}  Kd7 {[%clk 0:00:12]} 53. Ne6 {[%clk 0:00:04]}  Kc8 {[%clk 0:00:11]} 54. f3 {[%clk 0:00:04]}  Kb7 {[%clk 0:00:11]} 55. fxe4 {[%clk 0:00:03]}  Rh8 {[%clk 0:00:10]} 56. Nxf4 {[%clk 0:00:03]}  gxf4 {[%clk 0:00:10]} 57. Kf3 {[%clk 0:00:04]}  Rf8 {[%clk 0:00:10]} 58. g5 {[%clk 0:00:04]}  Kc8 {[%clk 0:00:08]} 59. Bd4 {[%clk 0:00:04]}  Kd7 {[%clk 0:00:08]} 60. Bf6 {[%clk 0:00:05]}  Ra8 {[%clk 0:00:07]} 61. Kxf4 {[%clk 0:00:05]}  Rxa5 {[%clk 0:00:06]} 62. g6 {[%clk 0:00:06]}  Ke8 {[%clk 0:00:06]} 63. Kf5 {[%clk 0:00:06]}  Kf8 {[%clk 0:00:06]} 64. Ke6 {[%clk 0:00:07]}  Ra4 {[%clk 0:00:06]} 65. e5 {[%clk 0:00:06]}  dxe5 {[%clk 0:00:06]} 66. Bxe5 {[%clk 0:00:06]}  Ra6+ {[%clk 0:00:04]} 67. d6 {[%clk 0:00:07]}  Rb6 {[%clk 0:00:04]} 68. Kd5 {[%clk 0:00:06]}  Rb7 {[%clk 0:00:03]} 69. Kc6 {[%clk 0:00:06]}  Ra7 {[%clk 0:00:02]} 70. d7 {[%clk 0:00:06]} 1-0


[Site "https://www.chess.com"]

[Event "Titled Tuesday Blitz June 8 2021"]
[White "Vignesh, N R"]
[Black "SpeedofLight0"]
[WhiteFideId "25012215"]
[WhiteElo "2401"]
[BlackElo "2795"]
[Result "1-0"]
[Round "08"]
[TimeControl "180+1"]
[Date "2021.06.08"]
[WhiteClock "0:00:54"]
[BlackClock "0:00:02"]

1. d4 {[%clk 0:03:00]}  Nf6 {[%clk 0:02:58]} 2. Nf3 {[%clk 0:03:00]}  d5 {[%clk 0:02:55]} 3. Bf4 {[%clk 0:02:59]}  c5 {[%clk 0:02:53]} 4. e3 {[%clk 0:02:59]}  Nc6 {[%clk 0:02:54]} 5. Nbd2 {[%clk 0:02:57]}  cxd4 {[%clk 0:02:53]} 6. exd4 {[%clk 0:02:57]}  a6 {[%clk 0:02:54]} 7. c3 {[%clk 0:02:53]}  Bf5 {[%clk 0:02:48]} 8. Be2 {[%clk 0:02:53]}  e6 {[%clk 0:02:48]} 9. O-O {[%clk 0:02:53]}  Bd6 {[%clk 0:02:48]} 10. Bg3 {[%clk 0:02:49]}  O-O {[%clk 0:02:47]} 11. Re1 {[%clk 0:02:49]}  Bxg3 {[%clk 0:02:46]} 12. hxg3 {[%clk 0:02:48]}  b5 {[%clk 0:02:40]} 13. Ne5 {[%clk 0:02:44]}  Nxe5 {[%clk 0:02:35]} 14. dxe5 {[%clk 0:02:45]}  Ne4 {[%clk 0:02:29]} 15. Nb3 {[%clk 0:02:34]}  Qb6 {[%clk 0:02:24]} 16. Nd4 {[%clk 0:02:33]}  Bg6 {[%clk 0:02:13]} 17. a3 {[%clk 0:02:32]}  Rfc8 {[%clk 0:02:02]} 18. Bd3 {[%clk 0:02:27]}  Qc7 {[%clk 0:01:53]} 19. Qe2 {[%clk 0:02:07]}  Rab8 {[%clk 0:01:42]} 20. a4 {[%clk 0:01:58]}  b4 {[%clk 0:01:37]} 21. Bxa6 {[%clk 0:01:56]}  bxc3 {[%clk 0:01:27]} 22. Nb5 {[%clk 0:01:48]}  Qxe5 {[%clk 0:00:53]} 23. Bxc8 {[%clk 0:01:41]}  cxb2 {[%clk 0:00:52]} 24. Rab1 {[%clk 0:01:39]}  Rxc8 {[%clk 0:00:51]} 25. Qxb2 {[%clk 0:01:35]}  Qh5 {[%clk 0:00:46]} 26. Rbc1 {[%clk 0:01:31]}  Rf8 {[%clk 0:00:45]} 27. a5 {[%clk 0:01:27]}  Nf6 {[%clk 0:00:43]} 28. f3 {[%clk 0:01:22]}  Qg5 {[%clk 0:00:40]} 29. Qf2 {[%clk 0:01:20]}  d4 {[%clk 0:00:35]} 30. Nxd4 {[%clk 0:01:15]}  Qxa5 {[%clk 0:00:36]} 31. Nc6 {[%clk 0:01:15]}  Qa8 {[%clk 0:00:31]} 32. Qc5 {[%clk 0:01:11]}  Re8 {[%clk 0:00:29]} 33. Ra1 {[%clk 0:01:09]}  Qb7 {[%clk 0:00:28]} 34. Ra7 {[%clk 0:01:09]}  Qb2 {[%clk 0:00:21]} 35. Ne7+ {[%clk 0:01:08]}  Kh8 {[%clk 0:00:21]} 36. Nxg6+ {[%clk 0:01:08]}  fxg6 {[%clk 0:00:15]} 37. Re7 {[%clk 0:01:01]}  Rxe7 {[%clk 0:00:08]} 38. Qxe7 {[%clk 0:01:02]}  Qb8 {[%clk 0:00:04]} 39. Qxe6 {[%clk 0:00:58]}  Qxg3 {[%clk 0:00:03]} 40. Qc8+ {[%clk 0:00:54]}  Ng8 {[%clk 0:00:02]} 41. Re8 {[%clk 0:00:54]}  h6 {[%clk 0:00:02]} 42. Rxg8+ {[%clk 0:00:54]} 1-0


[Site "https://www.chess.com"]